[Event "1000GM Schev-C-C February 2024"]
[Site "Santa Clara"]
[Date "2024.02.24"]
[Round "2.4"]
[White "Fan, Shengjie"]
[Black "Garcia Lopez, Miguel Angel"]
[Result "0-1"]
[ECO "C55"]
[WhiteElo "1578"]
[BlackElo "2262"]
[Annotator "TA"]
[PlyCount "70"]
[EventDate "2024.02.13"]
[EventType "schev"]
[EventCountry "USA"]
[SourceTitle "playchess.com"]
[Source "ChessBase"]
[SourceQuality "1"]
[TimeControl "5400+30"]

{[%evp 13,69,39,56,48,57,44,52,15,54,15,31,12,31,4,97,89,102,11,11,-27,-33,-62,10,-10,-22,-69,-74,-53,-41,-28,-19,-37,-28,-63,-26,-25,-20,-43,-45,-59,-43,-45,-51,-42,-46,-43,-12,-106,-114,-236,-218,-207,-236,-635,-509,-29998,-29999,-29999]} 1. e4 {[%emt 0:00:03]} e5 {[%emt 0:04:18]} 2. Nf3 {[%emt 0:00:11]} Nc6 {[%emt 0:00:05]} 3. Bc4 {[%emt 0:00:28]} Nf6 {[%emt 0:00:09]} 4. d3 {[%emt 0:00:11]} Be7 {[%emt 0:00:07]} 5. O-O {[%emt 0:00:18]} O-O {[%emt 0:00:08]} 6. Re1 {[%emt 0:00:04]} d6 {[%emt 0:00:38]} 7. a4 {[%emt 1:32:45]} Bg4 {[%emt 0:06:42][%cal Bc8g4,Bg4h5,Bh5g6,Bg6f5][%mdl 32]} 8. c3 {[%emt 0:00:00]} Kh8 {[%emt 0:05:37]} 9. h3 {[%emt 0:00:00]} Bh5 {[%emt 0:00:15]} 10. Bg5 {[%emt 0:00:00] White is slightly better.} Nd7 {[%emt 0:11:28]} 11. Bxe7 {[%emt 0:00:00]} Qxe7 {[%emt 0:00:32]} 12. Nbd2 {[%emt 0:00:00]} Bg6 {[%emt 0:05:18]} 13. d4 {[%emt 0:00:00]} f5 {[%emt 0:03:16]} (13... exd4 $11 14. Nxd4 (14. cxd4 a5 $14) 14... a5) 14. exf5 $16 {[%emt 0:00:00]} Bxf5 {[%emt 0:00:13]} 15. Nf1 {[%emt 0:00:00]} (15. a5 $16) 15... Qf6 $11 {[%emt 0:01:19][%cal Of5h3]} 16. N1h2 {[%emt 0:00:00]} Rae8 {[%emt 0:02:19]} 17. Re2 {[%emt 0:00:00]} Ne7 {[%emt 0:03:00]} ({Black should play} 17... e4 $15 18. Nd2 Qg6) 18. Bd3 {[%emt 0:00:00]} Ng6 {[%emt 0:01:34] [#] Threatens to win with ...e4.} 19. Bxf5 {[%emt 0:00:00]} (19. Ng4 $11 {was preferrable.} Qe6 20. Ng5) 19... Qxf5 $15 {[%emt 0:00:14]} 20. dxe5 {[%emt 0:00:00] Strongly threatening Nd4.} Ndxe5 {[%emt 0:00:33]} 21. Nxe5 {[%emt 0:00:00]} dxe5 {[%emt 0:01:03]} 22. Rd2 {[%emt 0:00:00]} Qg5 {[%emt 0:01:26] ...Nf4 is the strong threat.} 23. Rd3 {[%emt 0:00:00]} e4 {[%emt 0:04:17]} 24. Rg3 {[%emt 0:03:40]} Qf5 {[%emt 0:01:22]} 25. Qd2 {[%emt 0:00:54]} Nf4 {[%emt 0:01:19]} 26. Ng4 {[%emt 0:03:17]} Rd8 {[%emt 0:05:20]} 27. Qc2 {[%emt 0:00:47]} Nd3 {[%emt 0:00:15]} 28. Rf1 {[%emt 0:00:28]} Rf7 {[%emt 0:02:57]} 29. Ne3 {[%emt 0:01:06]} Qc5 {[%emt 0:00:53]} 30. Qb3 {[%emt 0:00:39]} (30. b4 $11 {remains equal.} Qe5 31. Nc4) 30... Rdf8 $17 {[%emt 0:04:05] Black has more active pieces.} 31. Qc2 {[%emt 0:00:37] Now White is beyond hope.} (31. Qxb7 $17 c6 (31... Nxf2 32. Qb5 $15) (31... Rxf2 32. Rxf2 Nxf2 33. Qb4 $11) 32. Qa6) 31... Qe5 $19 {[%emt 0:01:17]} ({Don't do} 31... Rxf2 32. Rxf2 Rxf2 33. Qb3) 32. Qe2 {[%emt 0:00:24]} Nxf2 {[%emt 0:02:03]} (32... Rxf2 33. Rxf2 Rxf2 34. Qg4 $14) 33. Rg4 {[%emt 0:00:31]} (33. Kh2) 33... Nxg4 {[%emt 0:00:25][%csl Gg4][%cal Re5h2]} 34. Rxf7 {[%emt 0:00:07] [#]} (34. hxg4 $19 Rxf1+ 35. Nxf1) 34... Qh2+ {[%emt 0:00:15]} 35. Kf1 {[%emt 0:00:12]} Qh1# {[%emt 0:00:06] Weighted Error Value: White=0.62/Black=0.26 (precise) .  Mistake:       	White=6     	Black=2      Inaccurate:     	White=6     	Black=3      OK:         	White=6     	Black=8      Best:        	White=1     	Black=1} 0-1

[Event "1000GM Schev-C-C February 2024"]
[Site "Santa Clara"]
[Date "2024.02.24"]
[Round "2.5"]
[White "Yuan, Serena"]
[Black "Vasquez Ramirez, Rocio"]
[Result "1/2-1/2"]
[ECO "E65"]
[WhiteElo "1771"]
[BlackElo "1999"]
[Annotator "ChessBase"]
[PlyCount "62"]
[EventDate "2024.02.13"]
[EventType "schev"]
[EventCountry "USA"]
[SourceTitle "playchess.com"]
[Source "ChessBase"]
[SourceQuality "1"]
[TimeControl "5400+30"]

1. d4 {[%emt 0:01:04]} Nf6 {[%emt 0:00:17]} 2. Nf3 {[%emt 0:00:08]} g6 {[%emt 0:01:46]} 3. g3 {[%emt 0:00:08]} Bg7 {[%emt 0:00:09]} 4. Bg2 {[%emt 0:00:06]} O-O {[%emt 0:00:33]} 5. O-O {[%emt 0:00:07]} d6 {[%emt 0:09:54]} 6. c4 {[%emt 0:00:20]} Nbd7 {[%emt 0:01:16]} 7. Nc3 {[%emt 0:00:29]} c5 {[%emt 0:02:26]} 8. d5 {[%emt 0:05:03]} a6 {[%emt 0:00:24]} 9. Qc2 {[%emt 0:01:20]} Rb8 {[%emt 0:00:15]} 10. a4 {[%emt 0:00:26]} Ne8 {[%emt 0:04:43]} 11. b3 {[%emt 0:05:24]} Nc7 {[%emt 0:09:50]} 12. Bb2 {[%emt 0:04:40]} b5 {[%emt 0:02:42]} 13. axb5 {[%emt 0:01:57]} axb5 {[%emt 0:00:14]} 14. Nd1 {[%emt 0:02:14]} bxc4 {[%emt 0:17:21]} 15. bxc4 {[%emt 0:03:16]} Bxb2 {[%emt 0:02:51]} 16. Nxb2 {[%emt 0:00:08]} Na6 {[%emt 0:00:03]} 17. Nd3 {[%emt 0:01:14]} Nb4 {[%emt 0:00:38]} 18. Qc3 {[%emt 0:02:35]} Nxd3 {[%emt 0:02:49]} 19. Qxd3 {[%emt 0:00:38]} Rb4 {[%emt 0:01:36]} 20. Rfb1 {[%emt 0:01:19]} Qb6 {[%emt 0:00:23]} 21. Rxb4 {[%emt 0:13:25]} cxb4 {[%emt 0:01:41]} 22. Qd4 {[%emt 0:03:26]} Nc5 {[%emt 0:02:26]} 23. Nd2 {[%emt 0:05:33]} b3 {[%emt 0:17:16]} 24. Rb1 {[%emt 0:03:36]} Qb4 {[%emt 0:01:26]} 25. Nxb3 {[%emt 0:03:12]} Nxb3 {[%emt 0:01:42]} 26. Qd3 {[%emt 0:01:27]} Ba6 {[%emt 0:02:43]} 27. Qxb3 {[%emt 0:01:05]} Qxb3 {[%emt 0:00:20]} 28. Rxb3 {[%emt 0:00:06]} Bxc4 {[%emt 0:00:02]} 29. Rb2 {[%emt 0:00:45]} Ra8 {[%emt 0:00:53]} 30. h4 {[%emt 0:00:42]} Ra1+ {[%emt 0:02:28]} 31. Kh2 {[%emt 0:00:23]} Ra2 {[%emt 0:01:43]} 1/2-1/2

[Event "1000GM Schev-C-C February 2024"]
[Site "Santa Clara"]
[Date "2024.02.25"]
[Round "3.1"]
[White "Ganesan, Vikrant"]
[Black "Zapata Campos, Lidia Karen"]
[Result "0-1"]
[ECO "E90"]
[WhiteElo "1870"]
[BlackElo "2025"]
[Annotator "RC"]
[PlyCount "62"]
[EventDate "2024.02.13"]
[EventType "schev"]
[EventCountry "USA"]
[SourceTitle "playchess.com"]
[Source "ChessBase"]
[SourceQuality "1"]
[TimeControl "5400+30"]

1. c4 {[%emt 0:00:01]} Nf6 {[%emt 0:00:56]} 2. Nc3 {[%emt 0:00:09]} g6 {[%emt 0:00:05]} 3. e4 {[%emt 0:00:11]} d6 {[%emt 0:00:05]} 4. d4 {[%emt 0:00:07]} Bg7 {[%emt 0:00:09]} 5. h3 {[%emt 0:00:03]} O-O {[%emt 0:00:16]} 6. Be3 {[%emt 0:00:04]} Nbd7 {[%emt 0:00:43]} 7. Nf3 {[%emt 0:00:03]} c5 {[%emt 0:00:15]} 8. d5 {[%emt 0:00:10]} b6 {[%emt 0:02:35]} 9. Be2 {[%emt 0:03:18]} Ne8 {[%emt 0:00:39]} 10. O-O {[%emt 0:05:56]} a6 {[%emt 0:03:28]} 11. a4 {[%emt 0:00:36]} Qc7 {[%emt 0:03:24]} 12. Nd2 {[%emt 0:04:19]} e6 {[%emt 0:02:53]} 13. f4 {[%emt 0:03:38]} Bd4 {[%emt 0:08:52]} 14. Bxd4 {[%emt 0:02:31]} cxd4 {[%emt 0:00:06]} 15. Na2 {[%emt 0:03:13]} a5 {[%emt 0:11:16]} 16. dxe6 {[%emt 0:20:11]} fxe6 {[%emt 0:00:16]} 17. e5 {[%emt 0:17:10]} dxe5 {[%emt 0:04:10]} 18. Bf3 {[%emt 0:08:35]} Ra7 {[%emt 0:03:05]} 19. fxe5 {[%emt 0:02:57]} Nxe5 {[%emt 0:01:06]} 20. Nb3 {[%emt 0:01:45]} Nxf3+ {[%emt 0:07:13]} 21. Rxf3 {[%emt 0:00:45]} Rxf3 {[%emt 0:01:09]} 22. Qxf3 {[%emt 0:00:57]} Qg7 {[%emt 0:09:51]} 23. Qc6 {[%emt 0:02:26]} Qd7 {[%emt 0:01:19]} 24. Qe4 {[%emt 0:05:18]} Rc7 {[%emt 0:08:24]} 25. Nxd4 {[%emt 0:07:37]} Rxc4 {[%emt 0:00:15]} 26. Rd1 {[%emt 0:00:14]} Bb7 {[%emt 0:16:41]} 27. Qg4 {[%emt 0:05:54]} Nf6 {[%emt 0:01:23]} 28. Qxe6+ {[%emt 0:04:14]} Qxe6 {[%emt 0:00:15]} 29. Nxe6 {[%emt 0:00:02]} Rc2 {[%emt 0:00:11]} 30. g4 {[%emt 0:02:08]} Bd5 {[%emt 0:03:37]} 31. Rf1 {[%emt 0:00:57]} Rg2+ {[%emt 0:00:32]} 0-1

[Event "1000GM Schev-C-C February 2024"]
[Site "Santa Clara"]
[Date "2024.02.25"]
[Round "3.2"]
[White "Yang, Maxwell"]
[Black "Montes Orozco, Miguel Angel"]
[Result "1/2-1/2"]
[ECO "A61"]
[WhiteElo "1946"]
[BlackElo "2178"]
[Annotator "RC"]
[PlyCount "86"]
[EventDate "2024.02.13"]
[EventType "schev"]
[EventCountry "USA"]
[SourceTitle "playchess.com"]
[Source "ChessBase"]
[SourceQuality "1"]
[TimeControl "5400+30"]

1. d4 {[%emt 0:01:59]} Nf6 {[%emt 0:02:09]} 2. c4 {[%emt 0:00:02]} e6 {[%emt 0:00:06]} 3. Nc3 {[%emt 0:00:04]} c5 {[%emt 0:00:03]} 4. d5 {[%emt 0:00:07]} exd5 {[%emt 0:00:05]} 5. cxd5 {[%emt 0:00:06]} g6 {[%emt 0:00:05]} 6. Nf3 {[%emt 0:00:09]} d6 {[%emt 0:00:04]} 7. Nd2 {[%emt 0:00:04]} Bg7 {[%emt 0:00:06]} 8. Nc4 {[%emt 0:00:12]} O-O {[%emt 0:00:06]} 9. Bg5 {[%emt 0:00:23]} h6 {[%emt 0:30:46]} 10. Bh4 {[%emt 0:01:21]} b6 {[%emt 0:04:02]} 11. a4 {[%emt 0:08:37]} Ba6 {[%emt 0:01:38]} 12. e3 {[%emt 0:00:23]} Qe7 {[%emt 0:00:50]} 13. Be2 {[%emt 0:08:15]} Nbd7 {[%emt 0:04:41]} 14. O-O {[%emt 0:01:44]} Rfd8 {[%emt 0:01:43]} 15. Qd2 {[%emt 0:07:23]} Bxc4 {[%emt 0:04:32]} 16. Bxc4 {[%emt 0:00:09]} g5 {[%emt 0:00:04]} 17. Bg3 {[%emt 0:00:13]} Nh5 {[%emt 0:00:27]} 18. a5 {[%emt 0:00:42]} Rdb8 {[%emt 0:09:23]} 19. Nb5 {[%emt 0:00:53]} Nxg3 {[%emt 0:00:18]} 20. hxg3 {[%emt 0:00:25]} Ne5 {[%emt 0:03:02]} 21. Be2 {[%emt 0:02:09]} a6 {[%emt 0:00:07]} 22. Nc3 {[%emt 0:00:32]} b5 {[%emt 0:00:02]} 23. f4 {[%emt 0:02:32]} Nd7 {[%emt 0:06:23]} 24. Bg4 {[%emt 0:05:48]} Nf6 {[%emt 0:05:28]} 25. Bf5 {[%emt 0:00:32]} Re8 {[%emt 0:00:13]} 26. Rae1 {[%emt 0:01:31]} b4 {[%emt 0:00:37]} 27. Na4 {[%emt 0:03:18]} Ne4 {[%emt 0:00:44]} 28. Bxe4 {[%emt 0:00:09]} Qxe4 {[%emt 0:00:05]} 29. Nb6 {[%emt 0:00:19]} Ra7 {[%emt 0:00:04]} 30. Qe2 {[%emt 0:14:27]} b3 {[%emt 0:15:17]} 31. Qc4 {[%emt 0:05:32]} Bxb2 {[%emt 0:05:18]} 32. Qxb3 {[%emt 0:01:31]} Bg7 {[%emt 0:01:13]} 33. Nc4 {[%emt 0:01:06]} Rd7 {[%emt 0:02:09]} 34. Nb6 {[%emt 0:06:24]} Rdd8 {[%emt 0:02:32]} 35. Qc4 {[%emt 0:11:19]} Qxc4 {[%emt 0:00:05]} 36. Nxc4 {[%emt 0:00:04]} Re4 {[%emt 0:00:02]} 37. Rc1 {[%emt 0:00:25]} Kf8 {[%emt 0:00:17]} 38. Rc2 {[%emt 0:01:12]} gxf4 {[%emt 0:02:15]} 39. Rxf4 {[%emt 0:02:16]} Re7 {[%emt 0:01:02]} 40. Kf2 {[%emt 0:01:00]} Rb7 {[%emt 0:00:29]} 41. Nb6 {[%emt 0:00:47]} Ke7 {[%emt 0:00:26]} 42. Rg4 {[%emt 0:00:39]} Bf6 {[%emt 0:00:20]} 43. Re4+ {[%emt 0:00:16]} Kf8 {[%emt 0:02:42]} 1/2-1/2

[Event "1000GM Schev-C-C February 2024"]
[Site "Santa Clara"]
[Date "2024.02.25"]
[Round "3.3"]
[White "Garcia Lopez, Miguel Angel"]
[Black "Wu, Jayden"]
[Result "0-1"]
[ECO "B86"]
[WhiteElo "2262"]
[BlackElo "1814"]
[Annotator "TA"]
[PlyCount "78"]
[EventDate "2024.02.13"]
[EventType "schev"]
[EventCountry "USA"]
[SourceTitle "playchess.com"]
[Source "ChessBase"]
[SourceQuality "1"]
[TimeControl "5400+30"]

{[%evp 23,78,-18,-16,-54,0,-5,0,15,14,10,71,91,144,131,133,39,40,49,42,0,0,-597,-592,-234,-603,-610,-580,-611,-599,-607,-613,-691,-668,-953,-911,-29982,-29983,-29979,-29980,-29992,-2103,-1641,-1340,-29978,-29979,-29976,-29976,-29987,-1565,-29962,-29956,-29980,-29981,-29992,-29993,-29996,-1274]} 1. e4 {[%emt 0:00:46]} c5 {[%emt 0:00:12]} 2. Nf3 {[%emt 0:00:06]} d6 {[%emt 0:00:07]} 3. Nc3 {[%emt 0:00:07]} Nf6 {[%emt 0:00:15]} 4. Bc4 {[%emt 0:00:08]} e6 {[%emt 0:00:19]} 5. d4 {[%emt 0:00:08]} cxd4 {[%emt 0:00:06]} 6. Nxd4 {[%emt 0:00:08]} a6 {[%emt 0:00:05]} 7. Bb3 {[%emt 0:00:09]} Nbd7 {[%emt 0:00:05]} 8. Bg5 {[%emt 0:00:20]} Nc5 {[%emt 0:00:14]} 9. f4 {[%emt 0:00:10]} Be7 {[%emt 0:00:17]} 10. Qe2 {[%emt 0:00:13]} h6 {[%emt 0:00:15]} 11. Bxf6 {[%emt 0:00:08]} Bxf6 {[%emt 0:00:07]} 12. O-O-O {[%emt 0:00:07]} Qc7 {[%emt 0:07:02]} 13. Kb1 {[%emt 0:00:42]} Nxb3 {[%emt 0:15:46]} (13... O-O $15) 14. cxb3 {[%emt 0:05:58]} O-O {[%emt 0:08:37]} 15. g4 {[%emt 0:01:02] The position is equal.} b5 {[%emt 0:08:30]} 16. h4 {[%emt 0:01:56] With the idea g5.} Bxd4 {[%emt 0:23:09]} (16... Qc5 $11 17. Nc2 Bb7) 17. Rxd4 $16 {[%emt 0:00:04]} e5 {[%emt 0:02:04]} (17... Bb7 $142) 18. Nd5 {[%emt 0:05:02]} Qb7 {[%emt 0:04:48]} 19. Rd2 {[%emt 0:02:36]} ({White should play} 19. Rdd1 $16) 19... exf4 $14 {[%emt 0:08:36]} 20. g5 {[%emt 0:00:15] aiming for gxh6.} (20. Nxf4 $2 Bxg4 21. Qg2 Rae8 22. Rxd6 Qxe4+ 23. Qxe4 Rxe4 $19) 20... Re8 {[%emt 0:05:55] White must now prevent ...Bf5.} 21. gxh6 {[%emt 0:03:33]} (21. Nxf4 $2 Rxe4 (21... Qxe4+ $2 22. Qxe4 Rxe4 23. Nd5 $19) 22. Qh2 Rxf4 23. gxh6 gxh6 $19) 21... Bf5 {[%emt 0:01:17]} 22. hxg7 $2 {[%emt 0:03:45][%mdl 8192] Black converts the advantage convincingly.} (22. Nxf4 $2 Rxe4 (22... Qxe4+ $2 23. Qxe4 Bxe4+ 24. Ka1 $19) 23. Qd3 Rxf4 $19) (22. Ka1 $1 $11 Bxe4 (22... gxh6 $2 23. Qg2+ Bg6 24. h5 $18) 23. Qg4) 22... Rxe4 $19 {[%emt 0:03:09]} 23. Nf6+ {[%emt 0:02:02]} Kxg7 {[%emt 0:00:09]} 24. Qg2+ {[%emt 0:00:37]} Kxf6 {[%emt 0:00:15][%cal Re4e1]} 25. Ka1 {[%emt 0:00:30]} d5 {[%emt 0:05:09]} 26. Rhd1 {[%emt 0:00:22]} Rc8 {[%emt 0:00:43] Threatens to win with ...Qc7.} 27. Qg5+ {[%emt 0:00:47]} Ke6 {[%emt 0:00:13]} 28. Qg7 {[%emt 0:04:48]} Qc6 {[%emt 0:01:53][%cal Oc6c1] ( -> ...Qc1+!)} 29. a3 {[%emt 0:00:44] [#]} Qc1+ $3 {[%emt 0:02:18]} 30. Ka2 {[%emt 0:00:18] [#]} (30. Rxc1 Rxc1+) 30... Re1 $1 {[%emt 0:00:51]} 31. Qd4 {[%emt 0:03:27] [#]} (31. Rxc1 Rcxc1) 31... Be4 {[%emt 0:02:56]} 32. Qb6+ {[%emt 0:01:57]} Kf5 {[%emt 0:00:29]} 33. Qd4 {[%emt 0:01:25]} Rxd1 {[%emt 0:00:27]} 34. Rxd1 {[%emt 0:00:12]} Qe3 {[%emt 0:00:19]} 35. Qg7 {[%emt 0:00:53]} Ke6 {[%emt 0:00:37]} (35... Rc1 $142 36. Qxf7+ Kg4 37. Qg7+ Kh3 (37... Kxh4 38. Rxc1 Qxc1 39. Qh6+ Kg4 40. Qg7+ Kh3 41. Qc3+ Qxc3 42. bxc3 f3 43. a4 f2 44. a5 f1=Q 45. Ka3 b4+ 46. Kxb4 Qf8+ 47. Ka4 Bc2 48. c4 Qb8 49. cxd5 Qxb3#) 38. Rxc1 Qxc1 39. Qc3+ Qxc3 (39... Kxh4 $2 {loses.} 40. Qxc1 Kg5 41. b4 $18) 40. bxc3 f3 (40... Kxh4 {leads to mate.} 41. a4 f3 42. axb5 f2 43. Ka3 f1=Q 44. bxa6 Qxa6+ 45. Kb4 Qd6+ 46. Ka5 Qc5+ 47. Ka4 d4 48. b4 Bc2+ 49. Ka3 Qxc3+ 50. Ka2 Qb3+ 51. Ka1 Qb1#) 41. Kb2 f2 (41... Kxh4 42. c4 d4 43. cxb5 axb5 44. a4 b4 45. Kc1 f2 46. Kd2 f1=Q 47. a5 Kg3 48. a6 Kf2 49. a7 Qe1#) 42. a4 a5 (42... f1=B $2 43. h5 $19) (42... f1=Q 43. a5 Qf6 44. Ka3 Qxc3 45. h5 b4+ 46. Ka4 d4 47. h6 Bc6#) 43. Kc1 f1=Q+ (43... f1=R+ $2 44. Kd2 $19) 44. Kd2 Qf2+ (44... Kxh4 45. Ke3 Qd3+ 46. Kf2 Qd2+ 47. Kf1 Kg3 48. axb5 Qf2#) 45. Kd1 Qc2+ (45... Qxh4 46. Ke2 Kg2 47. Kd1 Qf2 48. axb5 Kf1 49. c4 Qe1#) 46. Ke1 Bd3 47. axb5 Qe2#) 36. Qg4+ {[%emt 0:03:46]} Bf5 {[%emt 0:00:13] Black mates.} 37. Qg2 {[%emt 0:00:33]} f3 {[%emt 0:00:33]} 38. Qg3 {[%emt 0:01:19]} Rc1 {[%emt 0:00:27]} 39. Qb8 {[%emt 0:01:57]} Bb1+ {[%emt 0:00:13] Weighted Error Value: White=0.91/Black=0.13 (very precise) .  Loses game:     	White=1     	---        Mistake:       	White=1     	Black=3      Inaccurate:     	White=1     	---        OK:         	White=4     	Black=3      Best:        	White=1     	Black=3} (39... Rxd1 40. Qe8+ Kf6 41. Qxe3 Bb1+ 42. Ka1 Be4+ 43. Ka2 $19) 0-1

[Event "1000GM Schev-C-C February 2024"]
[Site "Santa Clara"]
[Date "2024.02.25"]
[Round "3.4"]
[White "Vasquez Ramirez, Rocio"]
[Black "Fan, Shengjie"]
[Result "1/2-1/2"]
[ECO "B24"]
[WhiteElo "1999"]
[BlackElo "1578"]
[Annotator "RC"]
[PlyCount "90"]
[EventDate "2024.02.13"]
[EventType "schev"]
[EventCountry "USA"]
[SourceTitle "playchess.com"]
[Source "ChessBase"]
[SourceQuality "1"]
[TimeControl "5400+30"]

1. e4 {[%emt 0:00:50]} c5 {[%emt 0:00:00]} 2. Nc3 {[%emt 0:00:07]} Nc6 {[%emt 0:00:00]} 3. g3 {[%emt 0:00:09]} g6 {[%emt 0:00:57]} 4. Bg2 {[%emt 0:00:14]} Bg7 {[%emt 0:00:10]} 5. Nge2 {[%emt 0:00:33]} e6 {[%emt 0:00:34]} 6. d3 {[%emt 0:02:36]} Nge7 {[%emt 0:01:54]} 7. Be3 {[%emt 0:00:42]} b6 {[%emt 0:01:47]} 8. d4 {[%emt 0:01:54]} cxd4 {[%emt 0:01:33]} 9. Nxd4 {[%emt 0:00:05]} a6 {[%emt 0:13:28]} 10. O-O {[%emt 0:27:12]} O-O {[%emt 0:00:28]} 11. Nde2 {[%emt 0:07:01]} Bb7 {[%emt 0:11:46]} 12. Na4 {[%emt 0:02:28]} Nc8 {[%emt 1:03:53]} 13. c4 {[%emt 0:04:13]} d6 {[%emt 0:00:00]} 14. Nac3 {[%emt 0:12:02]} Qe7 {[%emt 0:00:00]} 15. Rc1 {[%emt 0:08:25]} Ra7 {[%emt 0:00:00]} 16. h3 {[%emt 0:04:28]} Ba8 {[%emt 0:00:00]} 17. Qd2 {[%emt 0:01:12]} Rd7 {[%emt 0:00:00]} 18. Nd4 {[%emt 0:04:36]} Re8 {[%emt 0:00:00]} 19. Rfe1 {[%emt 0:06:48]} Qf8 {[%emt 0:00:00]} 20. Rcd1 {[%emt 0:02:30]} h6 {[%emt 0:00:00]} 21. Qc2 {[%emt 0:03:28]} Nxd4 {[%emt 0:00:00]} 22. Bxd4 {[%emt 0:00:02]} Bxd4 {[%emt 0:00:00]} 23. Rxd4 {[%emt 0:00:02]} Bc6 {[%emt 0:00:00]} 24. Red1 {[%emt 0:02:48]} Red8 {[%emt 0:00:00]} 25. Qb3 {[%emt 0:00:39]} Qe7 {[%emt 0:00:00]} 26. Qa3 {[%emt 0:00:44]} Bb7 {[%emt 0:01:24]} 27. e5 {[%emt 0:02:45]} Bxg2 {[%emt 0:02:23]} 28. Kxg2 {[%emt 0:01:08]} a5 {[%emt 0:01:05]} 29. Ne4 {[%emt 0:00:25]} Kh8 {[%emt 0:01:10]} 30. exd6 {[%emt 0:00:34]} Qf8 {[%emt 0:00:35]} 31. Qc3 {[%emt 0:02:15]} Qg7 {[%emt 0:00:45]} 32. Qd2 {[%emt 0:00:05]} f5 {[%emt 0:00:50]} 33. Nc3 {[%emt 0:00:22]} Rxd6 {[%emt 0:00:26]} 34. Rxd6 {[%emt 0:00:44]} Rxd6 {[%emt 0:00:06]} 35. Qe2 {[%emt 0:00:17]} Rxd1 {[%emt 0:01:16]} 36. Qxd1 {[%emt 0:00:01]} Qe7 {[%emt 0:00:30]} 37. f4 {[%emt 0:02:12]} Kh7 {[%emt 0:00:33]} 38. Qe2 {[%emt 0:00:24]} Qd6 {[%emt 0:00:38]} 39. Nb5 {[%emt 0:00:16]} Qc6+ {[%emt 0:00:25]} 40. Kh2 {[%emt 0:00:03]} Qc5 {[%emt 0:00:33]} 41. Kg2 {[%emt 0:02:50]} Qc6+ {[%emt 0:00:31]} 42. Kh2 {[%emt 0:00:26]} Qc5 {[%emt 0:00:06]} 43. b3 {[%emt 0:00:19]} Nd6 {[%emt 0:00:28]} 44. Nxd6 {[%emt 0:00:53]} Qxd6 {[%emt 0:00:05]} 45. Qb2 {[%emt 0:00:08]} Qc5 {[%emt 0:02:41]} 1/2-1/2

[Event "1000GM Schev-C-C February 2024"]
[Site "Santa Clara"]
[Date "2024.02.25"]
[Round "3.5"]
[White "Yuan, Serena"]
[Black "Pinzon, Jairo David"]
[Result "1/2-1/2"]
[ECO "A43"]
[WhiteElo "1771"]
[BlackElo "2114"]
[Annotator "RC"]
[PlyCount "60"]
[EventDate "2024.02.13"]
[EventType "schev"]
[EventCountry "USA"]
[SourceTitle "playchess.com"]
[Source "ChessBase"]
[SourceQuality "1"]
[TimeControl "5400+30"]

1. d4 {[%emt 0:03:31]} c5 {[%emt 0:00:26]} 2. d5 {[%emt 0:00:10]} b5 {[%emt 0:00:09]} 3. e4 {[%emt 0:00:20]} a6 {[%emt 0:00:38]} 4. c4 {[%emt 0:00:40]} b4 {[%emt 0:00:44]} 5. a3 {[%emt 0:00:43]} bxa3 {[%emt 0:00:17]} 6. Rxa3 {[%emt 0:00:17]} g6 {[%emt 0:00:26]} 7. Nf3 {[%emt 0:01:04]} d6 {[%emt 0:00:22]} 8. Bd2 {[%emt 0:02:21]} Bg7 {[%emt 0:00:12]} 9. Bc3 {[%emt 0:01:31]} Nf6 {[%emt 0:00:09]} 10. Bd3 {[%emt 0:02:25]} O-O {[%emt 0:00:33]} 11. O-O {[%emt 0:00:34]} e5 {[%emt 0:04:13]} 12. dxe6 {[%emt 0:03:19]} Bxe6 {[%emt 0:00:33]} 13. Re1 {[%emt 0:01:42]} Nc6 {[%emt 0:01:54]} 14. Bf1 {[%emt 0:02:48]} Re8 {[%emt 0:05:43]} 15. Nbd2 {[%emt 0:03:56]} Qc7 {[%emt 0:02:10]} 16. Qa1 {[%emt 0:02:03]} Qb7 {[%emt 0:07:52]} 17. b3 {[%emt 0:06:27]} Nh5 {[%emt 0:00:23]} 18. Bxg7 {[%emt 0:00:55]} Nxg7 {[%emt 0:00:10]} 19. g3 {[%emt 0:02:17]} Bg4 {[%emt 0:09:01]} 20. Bg2 {[%emt 0:05:03]} Bxf3 {[%emt 0:01:45]} 21. Nxf3 {[%emt 0:00:33]} Ne5 {[%emt 0:01:02]} 22. Rd1 {[%emt 0:02:29]} Qb6 {[%emt 0:13:59]} 23. Rd2 {[%emt 0:05:11]} Ne6 {[%emt 0:07:46]} 24. Rda2 {[%emt 0:12:29]} Nxf3+ {[%emt 0:01:45]} 25. Bxf3 {[%emt 0:00:09]} Nd4 {[%emt 0:00:16]} 26. Bg2 {[%emt 0:04:37]} a5 {[%emt 0:01:35]} 27. Qc3 {[%emt 0:03:57]} Ra7 {[%emt 0:08:30]} 28. Bf3 {[%emt 0:06:52]} Qb4 {[%emt 0:04:44]} 29. Qd3 {[%emt 0:02:07]} Qe1+ {[%emt 0:06:28]} 30. Kg2 {[%emt 0:00:22]} Nxf3 {[%emt 0:01:40]} 1/2-1/2

[Event "1000GM Schev-C-C February 2024"]
[Site "Santa Clara"]
[Date "2024.02.25"]
[Round "4.1"]
[White "Montes Orozco, Miguel Angel"]
[Black "Ganesan, Vikrant"]
[Result "1-0"]
[ECO "E00"]
[WhiteElo "2178"]
[BlackElo "1870"]
[Annotator "RC"]
[PlyCount "43"]
[EventDate "2024.02.13"]
[EventType "schev"]
[EventCountry "USA"]
[SourceTitle "playchess.com"]
[Source "ChessBase"]
[SourceQuality "1"]
[TimeControl "5400+30"]

1. d4 {[%emt 1:31:00]} Nf6 {[%emt 0:01:52]} 2. c4 {[%emt 0:00:00]} e6 {[%emt 0:00:21]} 3. a3 {[%emt 0:00:00]} d5 {[%emt 0:00:29]} 4. Nc3 {[%emt 0:00:00]} b6 {[%emt 0:01:24]} 5. cxd5 {[%emt 0:00:00]} exd5 {[%emt 0:00:06]} 6. Nf3 {[%emt 0:00:00]} Bd6 {[%emt 0:00:44]} 7. Bg5 {[%emt 0:00:00]} Bb7 {[%emt 0:00:31]} 8. Qc2 {[%emt 0:00:00]} O-O {[%emt 0:00:59]} 9. e3 {[%emt 0:00:00]} h6 {[%emt 0:00:38]} 10. Bh4 {[%emt 0:00:00]} Be7 {[%emt 0:00:28]} 11. Bd3 {[%emt 0:00:00]} c5 {[%emt 0:04:34]} 12. O-O {[%emt 0:00:00]} Nc6 {[%emt 0:01:41]} 13. dxc5 {[%emt 0:00:00]} bxc5 {[%emt 0:00:29]} 14. Rfd1 {[%emt 0:00:00]} Nd7 {[%emt 0:19:23]} 15. Bg3 {[%emt 0:00:00]} Nb6 {[%emt 0:01:47]} 16. Rd2 {[%emt 0:00:00]} Bf6 {[%emt 0:06:22]} 17. Nb5 {[%emt 0:00:00]} Na5 {[%emt 0:18:10]} 18. Nd6 {[%emt 0:00:00]} Qd7 {[%emt 0:07:35]} 19. Re1 {[%emt 0:00:00]} Rfd8 {[%emt 0:12:29]} 20. Ne5 {[%emt 0:00:00]} Bxe5 {[%emt 0:01:50]} 21. Bxe5 {[%emt 0:00:00]} Qe7 {[%emt 0:04:06]} 22. Bh7+ {[%emt 0:00:00]} 1-0